[Event "Early-Titled-Tuesday-Blitz-October-17-2023"]
[Site "Chess.com"]
[Date "2023.10.17"]
[Round "4"]
[White "Haykoooo0o"]
[Black "ivana_999"]
[Result "1-0"]
[WhiteElo "2445"]
[BlackElo "2103"]
[TimeControl "180+1"]
[EndTime "8:36:02 PDT"]
[Termination "Haykoooo0o won by resignation"]

1. Nf3 {[%clk 0:02:59.1]} 1... d5 {[%clk 0:02:59.8]} 2. e3 {[%clk 0:02:56.9]}
2... c5 {[%clk 0:02:59.6]} 3. Bb5+ {[%clk 0:02:56.2]} 3... Bd7 {[%clk
0:02:58.3]} 4. Bxd7+ {[%clk 0:02:56.7]} 4... Nxd7 {[%clk 0:02:58.4]} 5. O-O
{[%clk 0:02:57.6]} 5... Ngf6 {[%clk 0:02:58.6]} 6. c4 {[%clk 0:02:58.2]} 6... e6
{[%clk 0:02:59.2]} 7. cxd5 {[%clk 0:02:58.4]} 7... exd5 {[%clk 0:03:00.1]} 8. b3
{[%clk 0:02:58.7]} 8... Be7 {[%clk 0:02:57.2]} 9. Bb2 {[%clk 0:02:59.3]} 9...
O-O {[%clk 0:02:57.3]} 10. d4 {[%clk 0:03:00]} 10... cxd4 {[%clk 0:02:56.4]} 11.
Nxd4 {[%clk 0:03:00.9]} 11... Nc5 {[%clk 0:02:55]} 12. Nc3 {[%clk 0:02:59.2]}
12... Ne6 {[%clk 0:02:54]} 13. Nf5 {[%clk 0:02:59]} 13... Rc8 {[%clk 0:02:47.6]}
14. Rc1 {[%clk 0:02:55.7]} 14... Bb4 {[%clk 0:02:46.9]} 15. Qd3 {[%clk
0:02:52.2]} 15... Qd7 {[%clk 0:02:42.3]} 16. Rfd1 {[%clk 0:02:51.4]} 16... Rfd8
{[%clk 0:02:41.9]} 17. h3 {[%clk 0:02:50.6]} 17... Nc5 {[%clk 0:02:37.2]} 18.
Qb1 {[%clk 0:02:48.1]} 18... Nce4 {[%clk 0:02:31.1]} 19. Nxe4 {[%clk 0:02:36.7]}
19... Qxf5 {[%clk 0:02:30.5]} 20. Nxf6+ {[%clk 0:02:36.4]} 1-0

[Event "Early-Titled-Tuesday-Blitz-October-17-2023"]
[Site "Chess.com"]
[Date "2023.10.17"]
[Round "4"]
[White "HouseOfDurin"]
[Black "Lion_DL"]
[Result "1-0"]
[WhiteElo "2294"]
[BlackElo "2447"]
[TimeControl "180+1"]
[EndTime "8:36:21 PDT"]
[Termination "HouseOfDurin won by resignation"]

1. d4 {[%clk 0:03:00.9]} 1... Nf6 {[%clk 0:02:59.7]} 2. Bg5 {[%clk 0:03:01.5]}
2... e6 {[%clk 0:02:58.4]} 3. e4 {[%clk 0:03:01.3]} 3... h6 {[%clk 0:02:58.9]}
4. Bxf6 {[%clk 0:03:01.7]} 4... Qxf6 {[%clk 0:02:59.1]} 5. Nc3 {[%clk
0:03:01.7]} 5... c5 {[%clk 0:02:59.6]} 6. d5 {[%clk 0:02:59.8]} 6... e5 {[%clk
0:02:53.9]} 7. d6 {[%clk 0:02:49.7]} 7... Qxd6 {[%clk 0:02:47.2]} 8. Qxd6 {[%clk
0:02:48.4]} 8... Bxd6 {[%clk 0:02:46.4]} 9. Nb5 {[%clk 0:02:49]} 9... Be7 {[%clk
0:02:22.1]} 10. Nc7+ {[%clk 0:02:47.9]} 10... Kd8 {[%clk 0:02:22.7]} 11. Nxa8
{[%clk 0:02:48]} 11... b6 {[%clk 0:02:20.2]} 12. O-O-O {[%clk 0:02:45.8]} 12...
Bb7 {[%clk 0:02:19.6]} 13. Nxb6 {[%clk 0:02:46.1]} 13... axb6 {[%clk 0:02:19.4]}
14. f3 {[%clk 0:02:44.2]} 14... Nc6 {[%clk 0:02:18.9]} 15. Bc4 {[%clk
0:02:42.2]} 15... f6 {[%clk 0:02:12.5]} 16. Bd5 {[%clk 0:02:41.9]} 16... Kc7
{[%clk 0:02:12]} 17. Ne2 {[%clk 0:02:41.4]} 17... Nb4 {[%clk 0:02:04.5]} 18.
Bxb7 {[%clk 0:02:38.6]} 1-0

[Event "Early-Titled-Tuesday-Blitz-October-17-2023"]
[Site "Chess.com"]
[Date "2023.10.17"]
[Round "4"]
[White "Aslanov_Umid"]
[Black "LeoWin2012"]
[Result "1-0"]
[WhiteElo "2506"]
[BlackElo "2310"]
[TimeControl "180+1"]
[EndTime "8:37:14 PDT"]
[Termination "Aslanov_Umid won by resignation"]

1. e4 {[%clk 0:03:00.9]} 1... c6 {[%clk 0:02:58.5]} 2. d4 {[%clk 0:03:00.9]}
2... d6 {[%clk 0:02:59.4]} 3. Nd2 {[%clk 0:03:01.7]} 3... e5 {[%clk 0:02:58.9]}
4. Ngf3 {[%clk 0:03:01.5]} 4... exd4 {[%clk 0:02:57]} 5. Nxd4 {[%clk 0:03:02.4]}
5... g6 {[%clk 0:02:57.2]} 6. a4 {[%clk 0:02:56.1]} 6... Bg7 {[%clk 0:02:57.2]}
7. N2f3 {[%clk 0:02:56.6]} 7... a5 {[%clk 0:02:55.9]} 8. Bc4 {[%clk 0:02:56.8]}
8... Nf6 {[%clk 0:02:55.4]} 9. Qe2 {[%clk 0:02:55]} 9... O-O {[%clk 0:02:55.4]}
10. Bd3 {[%clk 0:02:51.9]} 10... Re8 {[%clk 0:02:52.8]} 11. O-O {[%clk
0:02:52.4]} 11... d5 {[%clk 0:02:53]} 12. e5 {[%clk 0:02:45.6]} 12... Nfd7
{[%clk 0:02:51.4]} 13. Bf4 {[%clk 0:02:45.7]} 13... c5 {[%clk 0:02:48.6]} 14.
Nb5 {[%clk 0:02:45.3]} 14... Nc6 {[%clk 0:02:48.8]} 15. Nd6 {[%clk 0:02:43]}
15... Rf8 {[%clk 0:02:36.7]} 16. Bb5 {[%clk 0:02:39.7]} 16... Qe7 {[%clk
0:02:26.1]} 17. Bxc6 {[%clk 0:02:31.8]} 17... bxc6 {[%clk 0:02:27]} 18. Rfe1
{[%clk 0:02:15]} 18... Ba6 {[%clk 0:02:23.7]} 19. Qe3 {[%clk 0:02:11.8]} 19...
d4 {[%clk 0:02:15.9]} 20. Qd2 {[%clk 0:02:10.2]} 20... Nb6 {[%clk 0:02:13.8]}
21. Bh6 {[%clk 0:02:03]} 21... Bxh6 {[%clk 0:02:07.2]} 22. Qxh6 {[%clk
0:02:03.9]} 22... Rad8 {[%clk 0:02:05.6]} 23. Ng5 {[%clk 0:01:55]} 1-0

[Event "Early-Titled-Tuesday-Blitz-October-17-2023"]
[Site "Chess.com"]
[Date "2023.10.17"]
[Round "4"]
[White "maurovargas01"]
[Black "rikchessmx"]
[Result "0-1"]
[WhiteElo "1900"]
[BlackElo "2266"]
[TimeControl "180+1"]
[EndTime "8:37:14 PDT"]
[Termination "rikchessmx won by resignation"]

1. e4 {[%clk 0:02:55.7]} 1... d5 {[%clk 0:03:00.9]} 2. e5 {[%clk 0:02:54.2]}
2... c5 {[%clk 0:03:00.2]} 3. f4 {[%clk 0:02:54.5]} 3... a6 {[%clk 0:03:00.3]}
4. Nf3 {[%clk 0:02:55.4]} 4... Bf5 {[%clk 0:03:00.4]} 5. d3 {[%clk 0:02:55.5]}
5... Nc6 {[%clk 0:03:00]} 6. g3 {[%clk 0:02:53.1]} 6... e6 {[%clk 0:02:58.5]} 7.
Bg2 {[%clk 0:02:53.2]} 7... h5 {[%clk 0:02:58.1]} 8. h3 {[%clk 0:02:51.3]} 8...
Qc7 {[%clk 0:02:55.8]} 9. O-O {[%clk 0:02:51.1]} 9... f6 {[%clk 0:02:55.3]} 10.
exf6 {[%clk 0:02:49]} 10... gxf6 {[%clk 0:02:54.4]} 11. Nc3 {[%clk 0:02:43.2]}
11... O-O-O {[%clk 0:02:53.5]} 12. a3 {[%clk 0:02:41.5]} 12... Bd6 {[%clk
0:02:50.9]} 13. Rb1 {[%clk 0:02:40.2]} 13... Qg7 {[%clk 0:02:49.8]} 14. Kh2
{[%clk 0:02:38.1]} 14... Nh6 {[%clk 0:02:49]} 15. Bd2 {[%clk 0:02:23.3]} 15...
Nd4 {[%clk 0:02:48.3]} 16. Nxd4 {[%clk 0:02:18.5]} 16... cxd4 {[%clk 0:02:47.9]}
17. Ne2 {[%clk 0:02:18.4]} 17... e5 {[%clk 0:02:47.1]} 18. fxe5 {[%clk
0:02:15.6]} 18... Bxe5 {[%clk 0:02:46.2]} 19. c3 {[%clk 0:02:10.8]} 19... Bxd3
{[%clk 0:02:43.7]} 20. Nxd4 {[%clk 0:02:03.4]} 20... Qxg3+ {[%clk 0:02:42.2]}
21. Kg1 {[%clk 0:02:01.5]} 21... Bxf1 {[%clk 0:02:34.8]} 22. Qxf1 {[%clk
0:01:59.8]} 22... Rhg8 {[%clk 0:02:29.1]} 23. Nf3 {[%clk 0:01:58.2]} 23... Bc7
{[%clk 0:02:21.7]} 24. Be1 {[%clk 0:01:54.2]} 24... Qg6 {[%clk 0:02:16.9]} 25.
Kh1 {[%clk 0:01:51.7]} 25... Qxb1 {[%clk 0:02:15.8]} 0-1

[Event "Early-Titled-Tuesday-Blitz-October-17-2023"]
[Site "Chess.com"]
[Date "2023.10.17"]
[Round "4"]
[White "Bauman_Guy"]
[Black "knightinshiningarmour16"]
[Result "1-0"]
[WhiteElo "2848"]
[BlackElo "2142"]
[TimeControl "180+1"]
[EndTime "8:37:54 PDT"]
[Termination "Bauman_Guy won by checkmate"]

1. e4 {[%clk 0:03:00.9]} 1... c6 {[%clk 0:02:59.4]} 2. d4 {[%clk 0:03:01]} 2...
d5 {[%clk 0:02:59.4]} 3. e5 {[%clk 0:03:01.9]} 3... Bf5 {[%clk 0:02:59.1]} 4. h4
{[%clk 0:03:02.5]} 4... h5 {[%clk 0:02:57.1]} 5. Bd3 {[%clk 0:03:02.5]} 5...
Bxd3 {[%clk 0:02:56.2]} 6. Qxd3 {[%clk 0:03:03.4]} 6... e6 {[%clk 0:02:56.1]} 7.
Nf3 {[%clk 0:03:03.2]} 7... Ne7 {[%clk 0:02:53.3]} 8. Bg5 {[%clk 0:03:00.3]}
8... Nd7 {[%clk 0:02:52.6]} 9. Nbd2 {[%clk 0:02:58.6]} 9... f6 {[%clk
0:02:52.4]} 10. Bf4 {[%clk 0:02:54.8]} 10... Qb6 {[%clk 0:02:47.8]} 11. O-O
{[%clk 0:02:54.6]} 11... Nf5 {[%clk 0:02:37.9]} 12. Rfe1 {[%clk 0:02:53.8]}
12... Kf7 {[%clk 0:02:36.7]} 13. exf6 {[%clk 0:02:48.4]} 13... gxf6 {[%clk
0:02:37.6]} 14. Rxe6 {[%clk 0:02:48.5]} 14... Kxe6 {[%clk 0:01:12.9]} 15. Re1+
{[%clk 0:02:47.9]} 15... Ne3 {[%clk 0:00:58.1]} 16. Rxe3+ {[%clk 0:02:47.1]}
16... Kf7 {[%clk 0:00:58.2]} 17. Qf5 {[%clk 0:02:47.3]} 17... Rd8 {[%clk
0:00:41.5]} 18. Ng5+ {[%clk 0:02:33.7]} 18... Kg8 {[%clk 0:00:40.9]} 19. Qg6+
{[%clk 0:02:33.2]} 19... Bg7 {[%clk 0:00:40]} 20. Qf7# {[%clk 0:02:33.6]} 1-0

[Event "Early-Titled-Tuesday-Blitz-October-17-2023"]
[Site "Chess.com"]
[Date "2023.10.17"]
[Round "4"]
[White "blitzo_vich"]
[Black "stollenmonster"]
[Result "0-1"]
[WhiteElo "2607"]
[BlackElo "2814"]
[TimeControl "180+1"]
[EndTime "8:38:15 PDT"]
[Termination "stollenmonster won by resignation"]

1. b3 {[%clk 0:02:57.5]} 1... Nf6 {[%clk 0:02:58.8]} 2. Bb2 {[%clk 0:02:57.2]}
2... e6 {[%clk 0:02:59.7]} 3. g3 {[%clk 0:02:55.9]} 3... d5 {[%clk 0:03:00.2]}
4. Bg2 {[%clk 0:02:56.5]} 4... Be7 {[%clk 0:03:00.7]} 5. Nf3 {[%clk 0:02:57]}
5... O-O {[%clk 0:03:01.2]} 6. O-O {[%clk 0:02:57.6]} 6... c5 {[%clk 0:03:00.8]}
7. d3 {[%clk 0:02:57.4]} 7... Nc6 {[%clk 0:03:00.7]} 8. Nbd2 {[%clk 0:02:58.1]}
8... d4 {[%clk 0:03:01.2]} 9. e4 {[%clk 0:02:57.5]} 9... dxe3 {[%clk 0:02:59.1]}
10. fxe3 {[%clk 0:02:56.8]} 10... Nd5 {[%clk 0:02:59.6]} 11. Qe2 {[%clk
0:02:52.1]} 11... Bf6 {[%clk 0:02:59.6]} 12. Bxf6 {[%clk 0:02:49.9]} 12... Qxf6
{[%clk 0:02:59.4]} 13. Ne4 {[%clk 0:02:48.8]} 13... Qe7 {[%clk 0:02:58.6]} 14.
c4 {[%clk 0:02:47]} 14... Nb6 {[%clk 0:02:52.4]} 15. Nfg5 {[%clk 0:01:54]} 15...
f5 {[%clk 0:02:41.1]} 16. Nxh7 {[%clk 0:01:40.7]} 16... Kxh7 {[%clk 0:02:37.2]}
17. Qh5+ {[%clk 0:01:40.6]} 17... Kg8 {[%clk 0:02:37.6]} 18. Ng5 {[%clk
0:01:40.8]} 18... g6 {[%clk 0:02:38.4]} 19. Qxg6+ {[%clk 0:01:40]} 19... Qg7
{[%clk 0:02:38.9]} 20. Qh5 {[%clk 0:01:38.6]} 20... Bd7 {[%clk 0:02:27.5]} 21.
h4 {[%clk 0:01:23.7]} 21... Ne5 {[%clk 0:02:21.9]} 22. Rad1 {[%clk 0:01:21.1]}
22... Ng4 {[%clk 0:02:20.3]} 23. e4 {[%clk 0:01:15.5]} 23... Be8 {[%clk
0:01:51.2]} 24. Nxe6 {[%clk 0:01:14.1]} 24... Bxh5 {[%clk 0:01:51.3]} 25. Nxg7
{[%clk 0:01:14.4]} 25... Kxg7 {[%clk 0:01:51.5]} 0-1

[Event "Early-Titled-Tuesday-Blitz-October-17-2023"]
[Site "Chess.com"]
[Date "2023.10.17"]
[Round "4"]
[White "SlavenPastar"]
[Black "chenrip"]
[Result "1-0"]
[WhiteElo "2660"]
[BlackElo "2482"]
[TimeControl "180+1"]
[EndTime "8:38:19 PDT"]
[Termination "SlavenPastar won on time"]

1. b3 {[%clk 0:03:00.9]} 1... b5 {[%clk 0:02:36.8]} 2. Bb2 {[%clk 0:02:59.8]}
2... Bb7 {[%clk 0:02:36.3]} 3. e3 {[%clk 0:03:00.1]} 3... a6 {[%clk 0:02:36.5]}
4. Nf3 {[%clk 0:03:00.5]} 4... Nf6 {[%clk 0:02:35.9]} 5. Be2 {[%clk 0:03:01]}
5... e6 {[%clk 0:02:35.5]} 6. O-O {[%clk 0:03:01.6]} 6... Be7 {[%clk 0:02:35.6]}
7. c4 {[%clk 0:03:02.3]} 7... b4 {[%clk 0:02:34.8]} 8. d4 {[%clk 0:03:02.2]}
8... d5 {[%clk 0:02:33.8]} 9. c5 {[%clk 0:03:01.8]} 9... c6 {[%clk 0:02:33.3]}
10. a3 {[%clk 0:02:54.6]} 10... a5 {[%clk 0:02:30.9]} 11. axb4 {[%clk
0:02:54.8]} 11... axb4 {[%clk 0:02:30.4]} 12. Rxa8 {[%clk 0:02:55.7]} 12... Bxa8
{[%clk 0:02:30.5]} 13. Qe1 {[%clk 0:02:47.6]} 13... Qa5 {[%clk 0:02:28.7]} 14.
Ba3 {[%clk 0:02:47.5]} 14... Na6 {[%clk 0:02:27.9]} 15. Bxa6 {[%clk 0:02:46.4]}
15... Qxa6 {[%clk 0:02:28]} 16. Qxb4 {[%clk 0:02:36.6]} 16... O-O {[%clk
0:02:28.3]} 17. Nc3 {[%clk 0:02:30.3]} 1-0

[Event "Early-Titled-Tuesday-Blitz-October-17-2023"]
[Site "Chess.com"]
[Date "2023.10.17"]
[Round "4"]
[White "baki83"]
[Black "crazy_but_lazy"]
[Result "1-0"]
[WhiteElo "2818"]
[BlackElo "2622"]
[TimeControl "180+1"]
[EndTime "8:38:25 PDT"]
[Termination "baki83 won by resignation"]

1. e4 {[%clk 0:03:00.2]} 1... e5 {[%clk 0:02:58.8]} 2. Nf3 {[%clk 0:03:00.1]}
2... Nc6 {[%clk 0:02:58.6]} 3. Bb5 {[%clk 0:02:59.6]} 3... a6 {[%clk 0:02:58.9]}
4. Ba4 {[%clk 0:02:59.6]} 4... Nf6 {[%clk 0:02:57.6]} 5. O-O {[%clk 0:02:59.6]}
5... Be7 {[%clk 0:02:52.5]} 6. Bxc6 {[%clk 0:02:59.7]} 6... dxc6 {[%clk
0:02:52.6]} 7. Re1 {[%clk 0:03:00.2]} 7... Nd7 {[%clk 0:02:50.7]} 8. c3 {[%clk
0:02:58.5]} 8... O-O {[%clk 0:02:39.6]} 9. d4 {[%clk 0:02:58.4]} 9... Bd6 {[%clk
0:02:39.2]} 10. Nbd2 {[%clk 0:02:53.9]} 10... Re8 {[%clk 0:02:37.4]} 11. Nc4
{[%clk 0:02:52.4]} 11... Qe7 {[%clk 0:02:36.7]} 12. dxe5 {[%clk 0:02:24.3]}
12... Nxe5 {[%clk 0:02:32.6]} 13. Ncxe5 {[%clk 0:02:24.6]} 13... Bxe5 {[%clk
0:02:32.7]} 14. Nxe5 {[%clk 0:02:24.9]} 14... Qxe5 {[%clk 0:02:33.6]} 15. Qf3
{[%clk 0:02:24.2]} 15... Be6 {[%clk 0:02:04]} 16. Bf4 {[%clk 0:02:22.1]} 16...
Qa5 {[%clk 0:02:04.6]} 17. Qg3 {[%clk 0:02:18.9]} 17... Rac8 {[%clk 0:01:54]}
18. Be5 {[%clk 0:02:18]} 18... g6 {[%clk 0:01:52.3]} 19. b4 {[%clk 0:02:11]}
19... Qb5 {[%clk 0:01:11.4]} 20. a4 {[%clk 0:02:09.3]} 20... Qc4 {[%clk
0:01:12]} 21. Qg5 {[%clk 0:01:59.1]} 21... Bg4 {[%clk 0:00:51.5]} 22. Bf6 {[%clk
0:01:52.3]} 1-0

[Event "Early-Titled-Tuesday-Blitz-October-17-2023"]
[Site "Chess.com"]
[Date "2023.10.17"]
[Round "4"]
[White "AsadliVugar"]
[Black "Egor_Koshulyan"]
[Result "1/2-1/2"]
[WhiteElo "2886"]
[BlackElo "2736"]
[TimeControl "180+1"]
[EndTime "8:38:37 PDT"]
[Termination "Game drawn by repetition"]

1. e4 {[%clk 0:03:00.3]} 1... c5 {[%clk 0:02:59.8]} 2. Nc3 {[%clk 0:02:59.7]}
2... Nc6 {[%clk 0:02:59.8]} 3. Nf3 {[%clk 0:02:58.9]} 3... Nf6 {[%clk
0:02:59.1]} 4. Bb5 {[%clk 0:02:55.2]} 4... g5 {[%clk 0:02:59.4]} 5. e5 {[%clk
0:02:36.1]} 5... g4 {[%clk 0:02:58.5]} 6. exf6 {[%clk 0:02:19.2]} 6... gxf3
{[%clk 0:02:57.2]} 7. Bxc6 {[%clk 0:02:17.1]} 7... dxc6 {[%clk 0:02:32.7]} 8.
Qxf3 {[%clk 0:02:16.8]} 8... exf6 {[%clk 0:02:33.2]} 9. O-O {[%clk 0:02:14.9]}
9... Be7 {[%clk 0:02:30.7]} 10. d3 {[%clk 0:02:13.6]} 10... Be6 {[%clk
0:02:29.2]} 11. Bf4 {[%clk 0:02:07.7]} 11... Rg8 {[%clk 0:02:27]} 12. Qh5 {[%clk
0:02:04.3]} 12... Qd4 {[%clk 0:02:14.3]} 13. Be3 {[%clk 0:01:48.8]} 13... Qb4
{[%clk 0:02:02.1]} 14. Ne4 {[%clk 0:01:47.1]} 14... f5 {[%clk 0:01:57.8]} 15.
Ng5 {[%clk 0:01:27.2]} 15... O-O-O {[%clk 0:01:38.1]} 16. Nxe6 {[%clk
0:01:25.4]} 16... fxe6 {[%clk 0:01:39]} 17. Qf7 {[%clk 0:01:24]} 17... Rxg2+
{[%clk 0:01:10.5]} 18. Kxg2 {[%clk 0:01:13.7]} 18... Qg4+ {[%clk 0:01:10.4]} 19.
Kh1 {[%clk 0:01:14.4]} 19... Qf3+ {[%clk 0:01:10.9]} 20. Kg1 {[%clk 0:01:15]}
20... Qg4+ {[%clk 0:01:11.5]} 21. Kh1 {[%clk 0:01:15.4]} 21... Qf3+ {[%clk
0:01:12.1]} 22. Kg1 {[%clk 0:01:16.1]} 22... Qg4+ {[%clk 0:01:12.2]} 23. Kh1
{[%clk 0:01:16.8]} 1/2-1/2

[Event "Early-Titled-Tuesday-Blitz-October-17-2023"]
[Site "Chess.com"]
[Date "2023.10.17"]
[Round "4"]
[White "Gravity_Chess"]
[Black "Kildepiotr"]
[Result "1-0"]
[WhiteElo "2863"]
[BlackElo "2645"]
[TimeControl "180+1"]
[EndTime "8:38:49 PDT"]
[Termination "Gravity_Chess won by resignation"]

1. b3 {[%clk 0:03:00.9]} 1... d5 {[%clk 0:02:53.6]} 2. Bb2 {[%clk 0:03:00.7]}
2... c5 {[%clk 0:02:54.2]} 3. e3 {[%clk 0:03:01]} 3... a6 {[%clk 0:02:54.7]} 4.
g3 {[%clk 0:02:56.8]} 4... Nc6 {[%clk 0:02:54.8]} 5. Bg2 {[%clk 0:02:57.3]} 5...
Nf6 {[%clk 0:02:52.6]} 6. Nf3 {[%clk 0:02:56.9]} 6... Bg4 {[%clk 0:02:51.6]} 7.
h3 {[%clk 0:02:56.9]} 7... Bh5 {[%clk 0:02:51.8]} 8. O-O {[%clk 0:02:57.3]} 8...
e6 {[%clk 0:02:51.7]} 9. d3 {[%clk 0:02:57.4]} 9... Be7 {[%clk 0:02:50.4]} 10.
Nbd2 {[%clk 0:02:57.8]} 10... O-O {[%clk 0:02:50.3]} 11. Qe2 {[%clk 0:02:57.3]}
11... b5 {[%clk 0:02:49.4]} 12. c4 {[%clk 0:02:50.9]} 12... Bg6 {[%clk
0:02:44.4]} 13. Nh4 {[%clk 0:02:45.3]} 13... Nb4 {[%clk 0:02:43.1]} 14. Nxg6
{[%clk 0:02:44.8]} 14... hxg6 {[%clk 0:02:42.9]} 15. a3 {[%clk 0:02:39.6]} 15...
Nc6 {[%clk 0:02:36.1]} 16. Rfc1 {[%clk 0:02:34.2]} 16... Rb8 {[%clk 0:02:34.2]}
17. Rab1 {[%clk 0:02:34.4]} 17... Na5 {[%clk 0:02:29.4]} 18. Bxf6 {[%clk
0:02:20.1]} 18... gxf6 {[%clk 0:02:27.3]} 19. cxd5 {[%clk 0:02:20.6]} 19... exd5
{[%clk 0:02:26.9]} 20. b4 {[%clk 0:02:21.1]} 20... cxb4 {[%clk 0:02:21.4]} 21.
axb4 {[%clk 0:02:22]} 21... Nb7 {[%clk 0:02:21.8]} 22. Nb3 {[%clk 0:02:18]}
22... Bxb4 {[%clk 0:02:18.7]} 23. Nd4 {[%clk 0:02:18.1]} 23... Bc5 {[%clk
0:02:07.1]} 24. Nc6 {[%clk 0:02:15.5]} 24... Qd6 {[%clk 0:02:07.3]} 25. Nxb8
{[%clk 0:02:15.6]} 25... Rxb8 {[%clk 0:02:08.2]} 26. Qa2 {[%clk 0:02:12.4]}
26... d4 {[%clk 0:02:04.2]} 27. e4 {[%clk 0:01:47.7]} 27... Qb6 {[%clk
0:01:52.8]} 28. e5 {[%clk 0:01:13.5]} 28... fxe5 {[%clk 0:01:51.6]} 29. Bxb7
{[%clk 0:01:13.8]} 29... Rxb7 {[%clk 0:01:48.1]} 30. Qd5 {[%clk 0:01:14.5]}
30... Bf8 {[%clk 0:01:39.4]} 31. Rc6 {[%clk 0:01:11.4]} 31... Qa7 {[%clk
0:01:35.5]} 32. Rxg6+ {[%clk 0:01:11.4]} 32... Bg7 {[%clk 0:01:33.5]} 33. Rd6
{[%clk 0:01:11.3]} 1-0

[Event "Early-Titled-Tuesday-Blitz-October-17-2023"]
[Site "Chess.com"]
[Date "2023.10.17"]
[Round "4"]
[White "nitpicker"]
[Black "Journey_to_GrandMaster_YT"]
[Result "0-1"]
[WhiteElo "2252"]
[BlackElo "2616"]
[TimeControl "180+1"]
[EndTime "8:38:51 PDT"]
[Termination "Journey_to_GrandMaster_YT won by resignation"]

1. d4 {[%clk 0:03:00.9]} 1... d6 {[%clk 0:02:58.6]} 2. e4 {[%clk 0:02:59.7]}
2... Nf6 {[%clk 0:02:58.6]} 3. Nc3 {[%clk 0:02:59.6]} 3... e5 {[%clk 0:02:59.5]}
4. Nge2 {[%clk 0:02:57.2]} 4... Be7 {[%clk 0:02:57]} 5. h3 {[%clk 0:02:57.1]}
5... O-O {[%clk 0:02:57.5]} 6. g4 {[%clk 0:02:56.3]} 6... c6 {[%clk 0:02:56.6]}
7. a4 {[%clk 0:02:54.9]} 7... a5 {[%clk 0:02:56.7]} 8. Be3 {[%clk 0:02:53.4]}
8... Nbd7 {[%clk 0:02:56.6]} 9. Bg2 {[%clk 0:02:53.6]} 9... Ne8 {[%clk
0:02:38.1]} 10. O-O {[%clk 0:02:48.8]} 10... Bg5 {[%clk 0:02:37.8]} 11. f4
{[%clk 0:02:42.6]} 11... exf4 {[%clk 0:02:38]} 12. Bxf4 {[%clk 0:02:33.5]} 12...
Bxf4 {[%clk 0:02:37.4]} 13. Rxf4 {[%clk 0:02:34.2]} 13... Nc7 {[%clk 0:02:32.7]}
14. Qd3 {[%clk 0:02:13.5]} 14... Ne6 {[%clk 0:02:30.8]} 15. Rf2 {[%clk 0:02:09]}
15... Qg5 {[%clk 0:02:30.8]} 16. Rf5 {[%clk 0:01:56.5]} 16... Qh4 {[%clk
0:02:24.2]} 17. Raf1 {[%clk 0:01:06.1]} 17... g6 {[%clk 0:02:23.7]} 18. R5f2
{[%clk 0:01:00.4]} 18... b6 {[%clk 0:02:24]} 19. e5 {[%clk 0:00:44.9]} 19... d5
{[%clk 0:02:15]} 20. Nxd5 {[%clk 0:00:44.5]} 20... cxd5 {[%clk 0:02:11.4]} 21.
Bxd5 {[%clk 0:00:43]} 21... Ba6 {[%clk 0:02:11.1]} 22. Qf3 {[%clk 0:00:43]}
22... Rad8 {[%clk 0:02:02.8]} 23. c3 {[%clk 0:00:30.7]} 23... Ng5 {[%clk
0:02:01.7]} 0-1

[Event "Early-Titled-Tuesday-Blitz-October-17-2023"]
[Site "Chess.com"]
[Date "2023.10.17"]
[Round "4"]
[White "Mourinho_Jose"]
[Black "whiteglovethief"]
[Result "0-1"]
[WhiteElo "2513"]
[BlackElo "2674"]
[TimeControl "180+1"]
[EndTime "8:38:59 PDT"]
[Termination "whiteglovethief won by resignation"]

1. Nf3 {[%clk 0:03:00.9]} 1... d5 {[%clk 0:02:58.8]} 2. g3 {[%clk 0:03:01.3]}
2... Bf5 {[%clk 0:02:57.9]} 3. Bg2 {[%clk 0:03:01.5]} 3... Nf6 {[%clk
0:02:57.9]} 4. c4 {[%clk 0:03:01.4]} 4... e6 {[%clk 0:02:51.8]} 5. O-O {[%clk
0:03:01.1]} 5... Nbd7 {[%clk 0:02:45.7]} 6. d3 {[%clk 0:02:56.1]} 6... h6 {[%clk
0:02:41.8]} 7. Nc3 {[%clk 0:02:53.2]} 7... c6 {[%clk 0:02:41.1]} 8. Be3 {[%clk
0:02:52.9]} 8... Be7 {[%clk 0:02:35.9]} 9. Qb3 {[%clk 0:02:52.6]} 9... Qc8
{[%clk 0:02:18.5]} 10. Rac1 {[%clk 0:02:52.4]} 10... O-O {[%clk 0:02:17.5]} 11.
cxd5 {[%clk 0:02:50.9]} 11... exd5 {[%clk 0:02:15.9]} 12. Nd4 {[%clk 0:02:47.5]}
12... Bg4 {[%clk 0:02:06.1]} 13. h3 {[%clk 0:02:44.4]} 13... Nc5 {[%clk
0:02:05.6]} 14. Nxc6 {[%clk 0:02:09.1]} 14... bxc6 {[%clk 0:01:47]} 15. Bxc5
{[%clk 0:02:07.2]} 15... Bxc5 {[%clk 0:01:42.9]} 16. hxg4 {[%clk 0:02:06.6]}
16... Qxg4 {[%clk 0:01:34.5]} 17. Nxd5 {[%clk 0:01:53.3]} 17... Bxf2+ {[%clk
0:01:30.1]} 18. Rxf2 {[%clk 0:01:49.8]} 18... cxd5 {[%clk 0:01:31]} 19. Kh2
{[%clk 0:01:10]} 19... Qg5 {[%clk 0:01:26]} 20. Rf4 {[%clk 0:01:06.1]} 20... Nh5
{[%clk 0:01:22.5]} 21. Qxd5 {[%clk 0:00:58.8]} 21... Qxg3+ {[%clk 0:01:20.2]}
22. Kh1 {[%clk 0:00:54.4]} 22... Nxf4 {[%clk 0:01:19.7]} 0-1

[Event "Early-Titled-Tuesday-Blitz-October-17-2023"]
[Site "Chess.com"]
[Date "2023.10.17"]
[Round "4"]
[White "Makswolf200817"]
[Black "Fan_Of_Chucky"]
[Result "0-1"]
[WhiteElo "2686"]
[BlackElo "2488"]
[TimeControl "180+1"]
[EndTime "8:39:01 PDT"]
[Termination "Fan_Of_Chucky won on time"]

1. Nf3 {[%clk 0:03:00.9]} 1... Nf6 {[%clk 0:02:58.8]} 2. c4 {[%clk 0:03:00.3]}
2... c5 {[%clk 0:02:59.1]} 3. d4 {[%clk 0:02:59]} 3... cxd4 {[%clk 0:02:54.7]}
4. Nxd4 {[%clk 0:02:59.9]} 4... e5 {[%clk 0:02:54.8]} 5. Nb5 {[%clk 0:02:55.7]}
5... d5 {[%clk 0:02:55.4]} 6. cxd5 {[%clk 0:02:54.1]} 6... Bc5 {[%clk 0:02:56]}
7. e3 {[%clk 0:02:49.7]} 7... O-O {[%clk 0:02:46.3]} 8. Bc4 {[%clk 0:02:31.5]}
8... a6 {[%clk 0:02:43.4]} 9. N5c3 {[%clk 0:02:31.4]} 9... b5 {[%clk 0:02:44.1]}
10. Bb3 {[%clk 0:02:30.7]} 10... e4 {[%clk 0:02:28.4]} 11. Nd2 {[%clk
0:02:16.6]} 11... Re8 {[%clk 0:02:26.9]} 12. Qc2 {[%clk 0:02:16.9]} 12... Bf5
{[%clk 0:02:26.8]} 13. Nxb5 {[%clk 0:01:20.4]} 13... Bxe3 {[%clk 0:01:50.6]} 14.
fxe3 {[%clk 0:01:20.4]} 14... axb5 {[%clk 0:01:47]} 15. O-O {[%clk 0:01:20.3]}
15... Bg6 {[%clk 0:01:46.8]} 0-1